bitfinex/quotes_SOLUSD_20240729
["timestamp","ask_amount","ask_price","bid_price","bid_amount"]
[1722233053188,12.79,194.03,193.91,14.35779019]
[1722233053483,12.79,194.03,193.97,12.79]
[1722233056866,12.79,194.01,193.95,12.79]
[1722233057185,12.79,194.01,193.94,12.79]
[1722233057688,12.79,194.0,193.94,12.79]
[1722233057988,12.79,193.98,193.87,21.25001396]
[1722233058188,20.0,194.05,193.9,12.79]
[1722233058189,12.79,193.97,193.9,12.79]
[1722233058366,12.79,193.96,193.9,12.79]
[1722233062471,15.6725,194.0,193.91,12.79]
[1722233062472,12.79,193.98,193.91,12.79]
[1722233062973,12.79,193.98,193.92,12.79]
[1722233063379,12.79,193.98,193.87,13.5356]
[1722233063380,15.6725,194.0,193.94,12.79]
[1722233063582,15.6725,194.0,193.95,12.79]
[1722233064668,28.4625,194.0,193.94,12.79]
[1722233066097,28.4625,194.0,193.95,12.79]
[1722233066098,15.6725,194.0,193.95,12.79]
[1722233066674,15.6725,194.0,193.9,51.16]
[1722233066895,15.6725,194.0,193.94,12.79]
[1722233067389,28.4625,194.0,193.94,12.79]
[1722233069195,28.4625,194.0,193.93,12.79]
[1722233070198,15.6725,194.0,193.94,12.79]
[1722233070393,28.4625,194.0,193.94,12.79]
[1722233070585,15.6725,194.0,193.95,12.79]
[1722233070990,15.6725,194.0,193.9,12.79]
[1722233070991,15.6725,194.0,193.97,12.79]
[1722233071189,16.5723,194.05,193.99,12.79]
[1722233071502,16.5723,194.05,194.0,12.79]
[1722233071797,16.5723,194.05,193.91,1.03112182]
[1722233071798,29.3623,194.05,193.98,12.79]
[1722233072100,16.5723,194.05,193.97,12.79]
[1722233072394,12.79,194.03,193.97,12.79]
[1722233073300,16.5723,194.05,194.01,12.79]
[1722233073994,16.5723,194.05,194.0,12.79]
[1722233074390,16.5723,194.05,193.99,12.79]
[1722233074589,16.5723,194.05,193.92,1.03088708]
[1722233074590,29.3623,194.05,193.98,12.79]
[1722233075413,16.5723,194.05,194.01,12.79]
[1722233075719,29.3623,194.05,193.98,12.79]
[1722233075888,12.79,194.04,193.97,12.79]
[1722233076214,12.79,194.03,193.97,12.79]
[1722233078009,1.4653543,194.06,194.0,12.79]
[1722233078200,1.4653543,194.06,193.99,12.79]
[1722233078716,12.79,194.05,193.98,12.79]
[1722233078921,12.79,194.04,193.97,12.79]
[1722233079214,12.79,194.03,193.96,12.79]
[1722233079923,45.0,194.07,193.95,12.79]
[1722233079924,12.79,194.02,193.95,12.79]
[1722233080790,6.6188,194.03,193.95,12.79]
[1722233080993,61.311,194.07,193.98,12.79]
[1722233081193,20.34,194.06,193.9,59.35802997]
[1722233081412,45.0,194.05,193.99,12.79]
[1722233081628,57.79,194.05,193.98,12.79]
[1722233081927,12.79,194.04,193.97,12.79]
[1722233082091,57.79,194.05,193.97,12.79]
[1722233082293,57.79,194.05,193.98,12.79]
[1722233082913,57.79,194.05,193.9,59.35802997]
[1722233082914,45.0,194.05,193.99,12.79]
[1722233083121,45.0,194.06,194.0,12.79]
[1722233084400,45.0,194.06,194.01,12.79]
[1722233084616,30.59526009,194.07,194.03,12.79]
[1722233084617,17.80526009,194.07,194.03,12.79]
[1722233084817,16.311,194.07,194.04,12.79]
[1722233085123,16.311,194.07,194.02,12.79]
[1722233085826,16.311,194.07,194.04,12.79]
[1722233086016,6.387,194.08,194.04,12.79]
[1722233086203,15.2069,194.12,194.06,12.79]
[1722233086405,27.9969,194.12,194.06,12.79]
[1722233086727,12.79,194.08,193.97,15.1835]
[1722233086916,12.79,194.08,194.01,12.79]
[1722233087619,45.0,194.07,194.01,12.79]
[1722233088323,57.79,194.07,194.0,12.79]
[1722233089121,12.79,194.05,193.98,12.79]
[1722233089312,45.0,194.04,193.93,15.8487]
[1722233090410,45.0,194.04,193.91,6.01570423]
[1722233090928,45.0,194.04,193.9,1.03115296]
[1722233091134,45.0,194.04,193.89,42.0461]
[1722233091135,4.463,194.03,193.89,42.0461]
[1722233091310,45.0,194.02,193.89,42.0461]
[1722233092030,45.0,194.02,193.89,49.73583593]
[1722233092207,45.0,194.02,193.89,48.704582]
[1722233092407,45.0,194.02,193.9,6.658482]
[1722233093730,31.2487,194.05,193.92,25.57]
[1722233093731,15.7487,194.05,193.92,25.57]
[1722233093916,20.0,194.04,193.93,0.17]
[1722233094430,15.7487,194.05,193.95,25.57]
[1722233094940,6.2647,194.06,193.95,25.57]
[1722233095332,6.2647,194.06,193.96,45.34]
[1722233095718,21.3994,194.1,193.96,45.34]
[1722233095923,20.0,194.09,193.96,45.34]
[1722233097133,24.1218,194.09,193.96,0.17]
[1722233097430,45.0,194.08,193.95,25.57]
[1722233097634,45.0,194.08,193.94,6.828482]
[1722233097833,45.0,194.08,193.95,20.17]
[1722233098134,4.1222,194.07,193.94,6.658482]
[1722233098333,45.17,194.06,193.94,6.658482]
[1722233099216,6.2941,194.04,193.89,42.0461]
[1722233099414,84.9631,194.03,193.89,42.0461]
[1722233099618,84.9631,194.03,193.88,6.658482]
[1722233100019,0.21011671,194.02,193.88,6.658482]
[1722233100225,0.34,194.01,193.88,6.658482]
[1722233102020,45.34,194.01,193.88,7.68978105]
[1722233102419,45.55011671,194.01,193.88,6.658482]
[1722233102810,15.5428,194.0,193.86,25.57]
[1722233103017,45.0,193.99,193.87,20.0]
[1722233105024,6.1584,193.97,193.83,25.57]
[1722233105244,51.4487,193.96,193.8,254.9]
[1722233105541,4.68120532,193.95,193.8,254.9]
[1722233105740,4.1249,193.94,193.8,254.9]
[1722233106042,6.1584,193.92,193.78,39.1056]
[1722233106246,0.34,193.91,193.78,39.1056]
[1722233106544,15.9811,193.9,193.78,25.57]
[1722233106743,0.17,193.89,193.78,25.57]
[1722233107043,45.17,193.89,193.76,5.56145089]
[1722233107844,0.17,193.88,193.74,5.70514748]
[1722233108149,20.01280532,193.88,193.72,33.30556077]
[1722233108353,34.927,193.85,193.72,7.73556077]
[1722233108522,69.68993021,193.84,193.72,7.73556077]
[1722233108830,85.18993021,193.84,193.69,25.57]
[1722233109037,0.22283021,193.83,193.67,0.797653]
[1722233109223,0.34,193.82,193.67,0.797653]
[1722233109426,0.56283021,193.82,193.67,0.797653]
[1722233110635,0.56283021,193.82,193.69,25.57]
[1722233111037,0.39283021,193.82,193.69,25.57]
[1722233112249,0.39283021,193.82,193.7,20.0]
[1722233116451,6.814,193.81,193.69,25.57]
[1722233116640,45.0,193.8,193.69,25.57]
[1722233117455,6.814,193.81,193.69,25.57]
[1722233118334,60.1936,193.8,193.69,25.57]
[1722233118540,60.3636,193.8,193.69,25.57]
[1722233119549,15.1936,193.8,193.69,25.57]
[1722233119945,15.1936,193.8,193.7,1.03231639]
[1722233120155,15.1936,193.8,193.72,25.57]
[1722233120738,15.1936,193.8,193.73,1.03212434]
[1722233121056,15.1936,193.8,193.74,1.03215924]
[1722233121567,15.1936,193.8,193.72,25.57]
[1722233121860,15.1936,193.8,193.75,25.57]
[1722233123844,15.1936,193.8,193.73,20.0]
[1722233124046,6.644,193.81,193.75,25.57]
[1722233125455,6.644,193.81,193.72,25.57]
[1722233128058,6.644,193.81,193.73,1.03225544]
[1722233128253,6.644,193.81,193.72,25.57]
[1722233128452,6.644,193.81,193.73,45.0]
[1722233128638,6.644,193.81,193.72,25.57]
[1722233131159,16.4985,193.8,193.72,25.57]
[1722233132055,15.101119,193.8,193.72,25.57]
[1722233139382,20.84212647,193.85,193.78,25.57]
[1722233139549,15.4567,193.85,193.78,25.57]
[1722233140176,15.4567,193.85,193.81,25.57]
[1722233140553,6.621,193.86,193.81,25.57]
[1722233140755,16.1793,193.89,193.84,25.57]
[1722233141876,16.1793,193.89,193.82,20.0]
[1722233142054,16.1793,193.89,193.8,25.91]
[1722233142252,16.1793,193.89,193.81,20.0]
[1722233142865,16.1793,193.89,193.79,25.57]
[1722233143071,16.1793,193.89,193.8,20.0]
[1722233143675,16.1793,193.89,193.82,25.57]
[1722233145393,16.1793,193.89,193.82,26.60163876]
[1722233145562,16.1793,193.89,193.85,25.57]
[1722233146172,16.1793,193.89,193.82,25.57]
[1722233146368,16.1793,193.89,193.83,20.0]
[1722233148065,16.1793,193.89,193.82,25.57]
[1722233150575,16.1793,193.89,193.79,25.57]
[1722233150774,16.1793,193.89,193.8,1.0318132]
[1722233150975,16.1793,193.89,193.79,25.57]
[1722233151890,16.1793,193.89,193.8,45.0]
[1722233152090,16.1793,193.89,193.79,25.57]
[1722233153311,16.1793,193.89,193.86,12.8]
[1722233154306,16.1793,193.89,193.87,12.8]
[1722233154481,16.1793,193.89,193.8,51.2]
[1722233154482,16.1793,193.89,193.88,12.8]
[1722233157003,6.1302,193.92,193.88,12.8]
[1722233157187,6.1302,193.92,193.91,12.8]
[1722233159217,6.1302,193.92,193.8,52.23152145]
[1722233159510,6.1302,193.92,193.89,12.8]
[1722233159695,6.1302,193.92,193.87,12.8]
[1722233160215,6.1302,193.92,193.86,12.8]
[1722233160792,18.9302,193.92,193.85,12.8]
[1722233160986,12.8,193.91,193.8,51.2]
[1722233161209,21.6302,193.92,193.76,7.08513837]
[1722233161210,60.4121,193.9,193.77,25.61]
[1722233161814,25.6848,193.89,193.74,25.61]
[1722233162000,65.17,193.88,193.74,25.61]
[1722233162614,69.2963,193.88,193.74,25.61]
[1722233162910,15.8668,193.86,193.74,25.61]
[1722233164687,15.8668,193.86,193.77,25.61]
[1722233166916,45.0,193.85,193.74,25.61]
[1722233167307,6.4991,193.84,193.74,25.61]
[1722233169318,45.0,193.83,193.74,25.61]
[1722233171609,45.0,193.83,193.74,25.53732879]
[1722233172009,6.1591,193.84,193.77,25.61]
[1722233173003,6.1591,193.84,193.78,1.03199417]
[1722233173204,6.1591,193.84,193.77,25.61]
[1722233173620,6.1591,193.84,193.78,1.03189973]
[1722233173830,6.1591,193.84,193.77,25.61]
[1722233178528,6.1591,193.84,193.74,25.61]
[1722233180301,45.0,193.83,193.74,25.61]
[1722233181001,6.1591,193.84,193.74,25.61]
[1722233181195,15.4497,193.83,193.71,2.13762401]
[1722233181414,35.4497,193.83,193.71,45.0]
[1722233181619,35.4497,193.83,193.8,12.81]
[1722233181926,35.4497,193.83,193.79,12.81]
[1722233183307,34.4168,193.8,193.67,0.797653]
[1722233183514,12.81,193.77,193.71,12.81]
[1722233184022,0.34,193.79,193.73,12.81]
[1722233184204,20.0,193.79,193.73,12.81]
[1722233185221,20.0,193.79,193.67,26.437653]
[1722233186301,6.1068,193.8,193.7,25.64]
[1722233186501,6.1068,193.8,193.73,25.64]
[1722233187819,6.1068,193.8,193.7,25.64]
[1722233188220,6.1068,193.8,193.73,25.64]
[1722233193633,6.2679,193.85,193.76,25.64]
[1722233204344,6.2679,193.85,193.73,1.03200185]
[1722233204643,6.2679,193.85,193.75,25.64]
[1722233205143,6.2679,193.85,193.81,12.81]
[1722233207740,23.2048,193.85,193.79,12.81]
[1722233208124,10.3948,193.85,193.79,12.81]
[1722233208521,6.2679,193.85,193.8,12.81]
[1722233208746,6.2679,193.85,193.81,12.81]
[1722233208957,6.2679,193.85,193.71,3.15189142]
[1722233209117,6.2679,193.85,193.79,12.81]
[1722233209648,12.81,193.84,193.7,51.24]
[1722233209944,21.97801671,193.85,193.79,12.81]
[1722233209945,6.47801671,193.85,193.79,12.81]
[1722233210151,6.47801671,193.85,193.8,12.81]
[1722233211524,6.47801671,193.85,193.82,12.81]
[1722233212223,6.47801671,193.85,193.81,12.81]
[1722233214545,6.47801671,193.85,193.8,12.81]
[1722233214745,10.60491671,193.85,193.8,12.81]
[1722233215140,10.60491671,193.85,193.79,12.81]
[1722233215449,10.60491671,193.85,193.8,12.81]
[1722233216541,10.60491671,193.85,193.79,12.81]
[1722233217252,45.0,193.84,193.79,12.81]
[1722233217423,6.47801671,193.85,193.8,12.81]
[1722233217624,34.78801671,193.85,193.68,18.76020057]
[1722233217825,12.81,193.83,193.76,12.81]
[1722233218055,45.0,193.82,193.76,12.81]
[1722233219252,45.0,193.82,193.77,12.81]
[1722233219447,0.17,193.81,193.76,12.81]
[1722233219653,0.17,193.81,193.77,12.81]
[1722233221455,45.0,193.82,193.77,12.81]
[1722233221781,45.0,193.82,193.79,12.81]
[1722233222056,45.0,193.83,193.79,12.81]
[1722233222448,6.47801671,193.85,193.81,12.81]
[1722233222927,6.47801671,193.85,193.82,12.81]
[1722233224259,6.47801671,193.85,193.8,12.81]
[1722233224451,6.47801671,193.85,193.81,12.81]
[1722233225034,12.81,193.83,193.68,19.79220772]
[1722233225252,6.47801671,193.85,193.76,12.81]
[1722233225253,21.97801671,193.85,193.76,12.81]
[1722233225442,82.2771,193.84,193.77,12.81]
[1722233225848,4.1274,193.83,193.77,12.81]
[1722233226047,45.34,193.82,193.77,12.81]
[1722233226455,4.1279,193.8,193.75,12.81]
[1722233226855,4.1281,193.79,193.75,12.81]
[1722233227868,4.1283,193.78,193.74,12.81]
[1722233228162,6.401,193.77,193.73,12.81]
[1722233228367,10.5296,193.77,193.71,12.81]
[1722233228860,4.1288,193.76,193.71,12.81]
[1722233229282,4.129,193.75,193.67,0.797653]
[1722233229447,45.0,193.75,193.7,12.81]
[1722233229657,4.1288,193.76,193.71,12.81]
[1722233229869,20.0,193.76,193.72,12.81]
[1722233230370,24.1288,193.76,193.71,12.81]
[1722233232175,45.0,193.75,193.71,12.81]
[1722233233259,45.0,193.75,193.67,0.797653]
[1722233233475,45.0,193.75,193.7,12.81]
[1722233233785,45.0,193.75,193.71,12.81]
[1722233234440,45.0,193.75,193.67,0.797653]
[1722233234648,45.0,193.75,193.71,12.81]
[1722233235067,20.0,193.76,193.73,12.81]
[1722233235262,20.0,193.76,193.74,12.81]
[1722233235459,20.0,193.76,193.75,12.81]
[1722233235979,6.401,193.77,193.75,12.81]
[1722233236270,6.401,193.77,193.74,12.81]
[1722233236461,15.7013,193.79,193.76,12.81]
[1722233237175,4.1285,193.78,193.7,51.24]
[1722233237370,4.1285,193.78,193.74,12.81]
[1722233238050,24.1285,193.78,193.74,12.81]
[1722233238969,4.1286,193.77,193.74,12.81]
[1722233239171,4.1286,193.77,193.73,12.81]
[1722233239551,4.1286,193.77,193.67,0.797653]
[1722233239552,28.31,193.77,193.67,0.797653]
[1722233239872,49.469,193.76,193.7,12.81]
[1722233240458,49.129,193.76,193.7,12.81]
[1722233240866,49.129,193.76,193.71,12.81]
[1722233241756,0.21011671,193.77,193.72,12.81]
[1722233242075,0.21011671,193.77,193.74,12.81]
[1722233243691,4.33871671,193.77,193.73,12.81]
[1722233243871,24.33871671,193.77,193.73,12.81]
[1722233244074,20.21011671,193.77,193.72,12.81]
[1722233244459,0.21011671,193.77,193.72,12.81]
[1722233244883,4.33871671,193.77,193.72,12.81]
[1722233245086,4.1288,193.76,193.72,12.81]
[1722233245460,0.21011671,193.77,193.72,12.81]
[1722233246174,0.21011671,193.77,193.71,12.81]
[1722233246379,4.1288,193.76,193.71,12.81]
[1722233246761,24.33871671,193.77,193.71,12.81]
[1722233247089,4.33871671,193.77,193.72,12.81]
[1722233247274,24.33871671,193.77,193.72,12.81]
[1722233247673,4.1288,193.76,193.72,12.81]
[1722233248387,4.1288,193.76,193.71,12.81]
[1722233248575,4.1288,193.76,193.72,12.81]
[1722233248890,4.33871671,193.77,193.72,12.81]
[1722233249087,0.21011671,193.77,193.72,12.81]
[1722233249266,0.21011671,193.77,193.75,12.81]
[1722233249598,0.21011671,193.77,193.67,0.797653]
[1722233249599,0.21011671,193.77,193.73,12.81]
[1722233250088,0.21011671,193.77,193.67,0.797653]
[1722233250295,4.33871671,193.77,193.67,0.797653]
[1722233250489,4.33871671,193.77,193.73,12.81]
[1722233250660,4.1289,193.76,193.71,12.81]
[1722233250861,4.129,193.75,193.71,12.81]
[1722233251979,0.21011671,193.77,193.72,12.81]
[1722233252195,4.33871671,193.77,193.72,12.81]
[1722233252370,4.129,193.75,193.72,12.81]
[1722233252686,4.129,193.75,193.71,12.81]
[1722233254088,4.1292,193.74,193.71,12.81]
[1722233254392,4.1289,193.76,193.71,12.81]
[1722233255794,10.5042,193.75,193.7,12.81]
[1722233255969,20.0,193.74,193.7,12.81]
[1722233256288,6.3752,193.75,193.7,12.81]
[1722233256489,6.3752,193.75,193.72,12.81]
[1722233256868,10.5042,193.75,193.72,12.81]
[1722233257298,6.3752,193.75,193.73,12.81]
[1722233257474,0.21011671,193.77,193.74,12.81]
[1722233257790,0.21011671,193.77,193.72,12.81]
[1722233257970,4.129,193.76,193.72,12.81]
[1722233258492,0.21011671,193.77,193.72,12.81]
[1722233258987,4.1288,193.76,193.72,12.81]
[1722233259575,0.21011671,193.77,193.72,12.81]
[1722233259874,4.33871671,193.77,193.73,12.81]
[1722233260391,4.1291,193.75,193.72,12.81]
[1722233260585,4.1291,193.75,193.71,12.81]
[1722233261675,4.1294,193.73,193.67,0.797653]
[1722233261873,33.15,193.76,193.67,0.797653]
[1722233261874,48.65,193.76,193.69,12.81]
[1722233262086,48.86011671,193.76,193.69,12.81]
[1722233262273,4.1294,193.73,193.69,12.81]
[1722233262587,0.34,193.74,193.69,12.81]
[1722233262787,0.34,193.75,193.69,12.81]
[1722233263307,4.1293,193.74,193.69,12.81]
[1722233264205,19.6293,193.74,193.67,0.797653]
[1722233264405,4.33941671,193.74,193.69,12.81]
[1722233264982,4.33941671,193.74,193.67,0.797653]
[1722233264983,4.1297,193.72,193.67,0.797653]
[1722233265289,4.1297,193.72,193.67,13.607653]
[1722233265488,4.1297,193.72,193.68,12.81]
[1722233266196,0.21011671,193.74,193.71,12.81]
[1722233266406,0.21011671,193.74,193.73,12.81]
[1722233266593,6.0564,193.82,193.73,57.81]
[1722233266813,6.0564,193.82,193.8,12.81]
[1722233266980,6.0564,193.82,193.79,12.81]
[1722233268780,18.9823,193.86,193.79,12.81]
[1722233269013,20.0,193.85,193.79,12.81]
[1722233269514,12.81,193.83,193.76,12.81]
[1722233269888,32.81,193.82,193.75,12.81]
[1722233270215,12.81,193.81,193.74,12.81]
[1722233271184,52.8076,193.82,193.75,12.81]
[1722233271486,0.34,193.81,193.75,12.81]
[1722233272796,13.15,193.81,193.74,12.81]
[1722233272996,20.0,193.8,193.74,12.81]
[1722233276106,6.257,193.79,193.73,12.81]
[1722233277708,6.257,193.79,193.61,1.03228948]
[1722233277709,12.81,193.78,193.67,17.416653]
[1722233278023,32.81,193.78,193.71,12.81]
[1722233278612,36.9384,193.78,193.71,12.81]
[1722233279509,32.4686,193.77,193.67,0.797653]
[1722233279716,12.81,193.75,193.67,0.797653]
[1722233279918,12.81,193.75,193.68,12.81]
[1722233280392,20.0,193.74,193.68,12.81]
[1722233282321,20.0,193.74,193.67,0.797653]
[1722233282498,20.0,193.74,193.69,12.81]
[1722233283818,39.6593,193.74,193.68,12.81]
[1722233284022,0.34,193.73,193.68,12.81]
[1722233284728,35.53,193.74,193.68,12.81]
[1722233285096,39.6592,193.74,193.67,0.797653]
[1722233285297,12.81,193.72,193.67,0.797653]
[1722233285529,19.1449,193.71,193.67,0.797653]
[1722233285699,4.1305,193.68,193.67,0.797653]
[1722233285898,0.17,193.68,193.67,0.797653]
[1722233286099,20.17,193.68,193.67,0.797653]
[1722233286711,20.0,193.68,193.67,0.797653]
[1722233289422,40.0005,193.68,193.67,0.797653]
[1722233289600,85.0005,193.68,193.67,0.797653]
[1722233289806,97.8105,193.68,193.67,0.797653]
[1722233291197,85.0005,193.68,193.67,0.797653]
[1722233292528,6.3349,193.71,193.67,0.797653]
[1722233292707,20.0,193.7,193.67,0.797653]
[1722233292902,4.1305,193.69,193.67,0.797653]
[1722233293328,4.1305,193.68,193.67,0.797653]
[1722233293830,0.34,193.68,193.67,0.797653]
[1722233294040,4.4705,193.68,193.67,0.797653]
[1722233294215,37.2805,193.68,193.67,0.797653]
[1722233294523,24.4705,193.68,193.67,0.797653]
[1722233294734,35.87,193.68,193.67,0.797653]
[1722233295403,20.34,193.68,193.67,0.797653]
[1722233295812,24.4705,193.68,193.67,0.797653]
[1722233297519,20.0,193.68,193.67,0.797653]
[1722233301433,23.2749,193.71,193.67,0.797653]
[1722233301732,15.53,193.75,193.67,13.607653]
[1722233301915,10.2941,193.76,193.69,12.81]
[1722233302119,23.1041,193.76,193.7,12.81]
[1722233302311,10.2941,193.76,193.7,12.81]
[1722233303942,10.2941,193.76,193.71,12.81]
[1722233304118,10.2941,193.76,193.67,0.797653]
[1722233304119,10.2941,193.76,193.7,12.81]
[1722233304329,4.1291,193.75,193.7,12.81]
[1722233304535,6.1651,193.76,193.7,12.81]
[1722233304741,20.0,193.75,193.7,12.81]
[1722233305141,20.0,193.75,193.67,0.797653]
[1722233305340,20.0,193.75,193.69,12.81]
[1722233306030,24.1292,193.75,193.69,12.81]
[1722233306234,24.1292,193.75,193.7,12.81]
[1722233306733,24.1292,193.75,193.69,12.81]
[1722233308723,4.1292,193.74,193.69,12.81]
[1722233309534,4.1292,193.74,193.67,0.797653]
[1722233309535,4.1292,193.74,193.68,12.81]
[1722233309726,20.0,193.75,193.67,13.607653]
[1722233310040,4.1294,193.73,193.67,13.607653]
[1722233310240,24.1294,193.73,193.67,13.607653]
[1722233310840,24.1294,193.73,193.69,12.81]
[1722233310841,20.0,193.73,193.69,12.81]
[1722233311037,24.129,193.75,193.69,12.81]
[1722233311239,24.129,193.75,193.67,0.797653]
[1722233311240,24.129,193.75,193.7,12.81]
[1722233311624,24.129,193.75,193.69,12.81]
[1722233312147,4.1292,193.74,193.69,12.81]
[1722233313019,24.129,193.75,193.69,12.81]
[1722233313248,20.0,193.75,193.67,0.797653]
[1722233313426,20.0,193.75,193.69,12.81]
[1722233313738,20.0,193.75,193.71,12.81]
[1722233315041,6.1651,193.76,193.71,12.81]
[1722233315227,20.0,193.75,193.71,12.81]
[1722233315830,20.0,193.76,193.71,12.81]
[1722233317326,16.9384,193.78,193.71,12.81]
[1722233317523,16.9384,193.78,193.72,12.81]
[1722233318231,4.1286,193.77,193.72,12.81]
[1722233318430,4.1286,193.77,193.71,12.81]
[1722233318632,24.1286,193.77,193.71,12.81]
[1722233319246,20.0,193.77,193.71,12.81]
[1722233320737,20.0,193.77,193.73,12.81]
[1722233320939,20.0,193.79,193.73,12.81]
[1722233321934,24.1282,193.79,193.73,12.81]
[1722233322558,4.1285,193.78,193.73,12.81]
[1722233322758,4.1285,193.78,193.72,12.81]
[1722233323134,4.1285,193.78,193.67,0.797653]
[1722233323449,36.9381,193.79,193.72,12.81]
[1722233323835,4.1281,193.79,193.73,12.81]
[1722233324035,36.9381,193.79,193.72,12.81]
[1722233325438,20.0,193.79,193.73,12.81]
[1722233325948,32.81,193.8,193.73,12.81]
[1722233326130,36.9379,193.8,193.73,12.81]
[1722233326330,32.81,193.8,193.73,12.81]
[1722233326557,4.1282,193.79,193.73,12.81]
[1722233327846,24.1279,193.8,193.73,12.81]
[1722233328038,36.9379,193.8,193.73,12.81]
[1722233329146,36.9379,193.8,193.72,12.81]
[1722233329542,4.1281,193.79,193.72,12.81]
[1722233330846,12.81,193.78,193.71,12.81]
[1722233331050,12.81,193.78,193.72,12.81]
[1722233331774,11.71866121,193.78,193.67,0.797653]
[1722233331973,12.81,193.77,193.7,12.81]
[1722233332269,12.81,193.76,193.69,12.81]
[1722233332766,12.81,193.74,193.67,0.797653]
[1722233332943,12.81,193.74,193.67,13.607653]
[1722233333139,12.81,193.72,193.67,0.797653]
[1722233334380,16.9396,193.72,193.67,0.797653]
[1722233334764,12.81,193.71,193.67,0.797653]
[1722233336163,12.81,193.69,193.67,0.797653]
[1722233339361,12.81,193.7,193.67,0.797653]
[1722233339548,20.0,193.69,193.67,0.797653]
[1722233340373,23.4201,193.68,193.67,0.797653]
[1722233340771,6.3096,193.68,193.67,0.797653]
[1722233340954,28.402,193.7,193.67,0.797653]
[1722233341152,20.0,193.69,193.67,0.797653]
[1722233343184,32.81,193.69,193.67,0.797653]
[1722233344878,36.9403,193.69,193.67,0.797653]
[1722233345784,32.4705,193.68,193.67,0.797653]
[1722233345974,52.8105,193.68,193.67,0.797653]
[1722233346177,52.6405,193.68,193.67,0.797653]
[1722233346494,52.8105,193.68,193.67,0.797653]
[1722233347874,32.8105,193.68,193.67,0.797653]
[1722233348082,28.68,193.68,193.67,0.797653]
[1722233348265,20.0,193.68,193.67,0.797653]
[1722233353276,32.81,193.68,193.67,0.797653]
[1722233353675,20.0,193.68,193.67,0.797653]
[1722233354760,32.81,193.68,193.67,0.797653]
[1722233354963,37.1105,193.68,193.67,0.797653]
[1722233355269,36.9405,193.68,193.67,0.797653]
[1722233355477,37.1105,193.68,193.67,0.797653]
[1722233356914,97.8105,193.68,193.67,0.797653]
[1722233357181,52.8105,193.68,193.67,0.797653]
[1722233357683,97.8105,193.68,193.67,0.797653]
[1722233366691,114.1189,193.68,193.67,0.797653]
[1722233368559,77.8105,193.68,193.67,0.797653]
[1722233369401,16.9405,193.68,193.67,0.797653]
[1722233369782,4.1305,193.68,193.67,0.797653]
[1722233369962,16.9405,193.68,193.67,0.797653]